[Event "Late-Titled-Tuesday-Blitz-October-03-2023"]
[Site "Chess.com"]
[Date "2023.10.03"]
[Round "3"]
[White "Angry_Twin"]
[Black "Maestro1986"]
[Result "1-0"]
[WhiteElo "2927"]
[BlackElo "2555"]
[TimeControl "180+1"]
[EndTime "14:24:34 PDT"]
[Termination "Angry_Twin won by resignation"]

1. e4 {[%clk 0:03:00.9]} 1... c5 {[%clk 0:02:59.4]} 2. Nf3 {[%clk 0:02:59.3]}
2... Nf6 {[%clk 0:02:59.6]} 3. e5 {[%clk 0:02:58]} 3... Nd5 {[%clk 0:02:59.8]}
4. Nc3 {[%clk 0:02:58.7]} 4... Nxc3 {[%clk 0:03:00.1]} 5. dxc3 {[%clk 0:02:59]}
5... Nc6 {[%clk 0:03:01]} 6. Bf4 {[%clk 0:02:59.5]} 6... Qb6 {[%clk 0:03:00.2]}
7. Qc1 {[%clk 0:02:57.8]} 7... h6 {[%clk 0:03:00]} 8. Bd3 {[%clk 0:02:57.3]}
8... e6 {[%clk 0:02:59.3]} 9. O-O {[%clk 0:02:55.9]} 9... Qc7 {[%clk 0:02:58.8]}
10. Qe3 {[%clk 0:02:55.3]} 10... g5 {[%clk 0:02:55]} 11. Bg3 {[%clk 0:02:55.3]}
11... Bg7 {[%clk 0:02:55.1]} 12. Rfe1 {[%clk 0:02:55.8]} 12... b6 {[%clk
0:02:52.7]} 13. Nd2 {[%clk 0:02:55.9]} 13... Bb7 {[%clk 0:02:22.4]} 14. Nc4
{[%clk 0:02:55.8]} 14... O-O {[%clk 0:02:16]} 15. Nd6 {[%clk 0:02:49.1]} 15...
Ne7 {[%clk 0:02:09]} 16. Rad1 {[%clk 0:02:47.4]} 16... Ng6 {[%clk 0:01:58.4]}
17. c4 {[%clk 0:02:35.8]} 17... Bc6 {[%clk 0:01:58.1]} 18. c3 {[%clk 0:02:30.2]}
18... Qd8 {[%clk 0:01:46.2]} 19. f3 {[%clk 0:02:29.4]} 19... f5 {[%clk
0:01:40.3]} 20. exf6 {[%clk 0:02:24.4]} 20... Qxf6 {[%clk 0:01:40.6]} 21. Be4
{[%clk 0:02:24.7]} 21... Bxe4 {[%clk 0:01:32.8]} 22. Nxe4 {[%clk 0:02:24.6]}
22... Qf7 {[%clk 0:01:29.9]} 23. Rd6 {[%clk 0:02:24.8]} 23... Be5 {[%clk
0:01:17]} 24. Bxe5 {[%clk 0:02:21.5]} 24... Nxe5 {[%clk 0:01:17.1]} 25. Nxg5
{[%clk 0:02:19.6]} 25... Nxc4 {[%clk 0:01:02.3]} 26. Nxf7 {[%clk 0:02:18.6]}
26... Nxe3 {[%clk 0:01:02]} 27. Nxh6+ {[%clk 0:02:19]} 27... Kg7 {[%clk
0:00:57.9]} 28. Rxd7+ {[%clk 0:02:17.9]} 28... Kxh6 {[%clk 0:00:57.8]} 29. Rxe3
{[%clk 0:02:18.5]} 29... Rf6 {[%clk 0:00:55]} 30. Re7 {[%clk 0:02:18.7]} 30...
Rd8 {[%clk 0:00:54.2]} 31. R7xe6 {[%clk 0:02:15.8]} 31... Rxe6 {[%clk
0:00:55.1]} 32. Rxe6+ {[%clk 0:02:16.4]} 32... Kg5 {[%clk 0:00:55.8]} 33. Kf2
{[%clk 0:02:17.2]} 33... Kf5 {[%clk 0:00:54.2]} 34. Re2 {[%clk 0:02:17.6]} 34...
a5 {[%clk 0:00:54.2]} 35. g4+ {[%clk 0:02:18]} 35... Kf6 {[%clk 0:00:53.3]} 36.
Kg3 {[%clk 0:02:18.5]} 36... a4 {[%clk 0:00:53.9]} 37. a3 {[%clk 0:02:18.1]}
37... Rd3 {[%clk 0:00:53.9]} 38. h4 {[%clk 0:02:18.2]} 38... b5 {[%clk
0:00:54.3]} 39. Kf4 {[%clk 0:02:16.9]} 39... b4 {[%clk 0:00:54.5]} 40. axb4
{[%clk 0:02:17]} 40... cxb4 {[%clk 0:00:55.4]} 41. cxb4 {[%clk 0:02:17.6]} 41...
Rb3 {[%clk 0:00:55.6]} 42. g5+ {[%clk 0:02:17.6]} 42... Kg6 {[%clk 0:00:56]} 43.
Kg4 {[%clk 0:02:18.3]} 43... Rxb4+ {[%clk 0:00:56.2]} 44. f4 {[%clk 0:02:18.9]}
44... Rb3 {[%clk 0:00:55.9]} 45. h5+ {[%clk 0:02:19]} 45... Kg7 {[%clk
0:00:56.6]} 46. Re7+ {[%clk 0:02:16.9]} 46... Kf8 {[%clk 0:00:56.7]} 47. Ra7
{[%clk 0:02:17.6]} 47... Rb4 {[%clk 0:00:56.4]} 48. h6 {[%clk 0:02:17.5]} 48...
Rxb2 {[%clk 0:00:55.3]} 49. Rxa4 {[%clk 0:02:17.1]} 49... Ra2 {[%clk 0:00:55.9]}
1-0

[Event "Late-Titled-Tuesday-Blitz-October-03-2023"]
[Site "Chess.com"]
[Date "2023.10.03"]
[Round "3"]
[White "ViIIagra"]
[Black "Let_it_be_1"]
[Result "1-0"]
[WhiteElo "2936"]
[BlackElo "2637"]
[TimeControl "180+1"]
[EndTime "14:24:37 PDT"]
[Termination "ViIIagra won by resignation"]

1. d4 {[%clk 0:03:00.9]} 1... d5 {[%clk 0:02:56.3]} 2. Nd2 {[%clk 0:03:01.3]}
2... e6 {[%clk 0:02:54.8]} 3. e3 {[%clk 0:03:00.7]} 3... Nf6 {[%clk 0:02:54.3]}
4. Bd3 {[%clk 0:03:01.1]} 4... b6 {[%clk 0:02:53.5]} 5. Qe2 {[%clk 0:02:59.7]}
5... Be7 {[%clk 0:02:52.4]} 6. Ngf3 {[%clk 0:02:58]} 6... O-O {[%clk 0:02:50.2]}
7. Ne5 {[%clk 0:02:57.5]} 7... c5 {[%clk 0:02:49.5]} 8. c3 {[%clk 0:02:57.3]}
8... a5 {[%clk 0:02:48.8]} 9. a4 {[%clk 0:02:33.7]} 9... Ba6 {[%clk 0:02:47.6]}
10. Bb5 {[%clk 0:02:34.4]} 10... Bxb5 {[%clk 0:02:45.4]} 11. axb5 {[%clk
0:02:35.3]} 11... Nfd7 {[%clk 0:02:45.4]} 12. Nef3 {[%clk 0:02:28]} 12... Qc7
{[%clk 0:02:39.9]} 13. O-O {[%clk 0:02:26.8]} 13... e5 {[%clk 0:02:37.1]} 14.
dxe5 {[%clk 0:02:19.3]} 14... Nxe5 {[%clk 0:02:36.7]} 15. e4 {[%clk 0:02:20]}
15... Nxf3+ {[%clk 0:02:16.9]} 16. Nxf3 {[%clk 0:02:15.2]} 16... dxe4 {[%clk
0:02:15.5]} 17. Qxe4 {[%clk 0:02:16.1]} 17... Ra7 {[%clk 0:02:15.8]} 18. Re1
{[%clk 0:02:14.9]} 18... Bd6 {[%clk 0:02:07.7]} 19. Ng5 {[%clk 0:02:13]} 19...
g6 {[%clk 0:01:56.6]} 20. Qh4 {[%clk 0:02:12.8]} 20... h5 {[%clk 0:01:56.6]} 21.
Ne4 {[%clk 0:02:07.7]} 21... Be7 {[%clk 0:01:51.7]} 22. Bg5 {[%clk 0:02:04.2]}
22... Bxg5 {[%clk 0:01:45.4]} 23. Qxg5 {[%clk 0:02:02]} 23... Nd7 {[%clk
0:01:45.4]} 24. Rad1 {[%clk 0:01:56.2]} 24... Kg7 {[%clk 0:01:26.9]} 25. Ng3
{[%clk 0:01:48]} 25... Kh7 {[%clk 0:01:17.8]} 26. Re7 {[%clk 0:01:43]} 26... Qd8
{[%clk 0:01:15.1]} 27. Nf5 {[%clk 0:01:27.6]} 27... gxf5 {[%clk 0:01:07.5]} 28.
Qxh5+ {[%clk 0:01:25.3]} 28... Kg7 {[%clk 0:01:07.3]} 29. Qg5+ {[%clk
0:01:25.2]} 29... Kh7 {[%clk 0:01:07.3]} 30. Qxf5+ {[%clk 0:01:20.3]} 30... Kg7
{[%clk 0:01:06.8]} 31. Qg5+ {[%clk 0:01:20.3]} 31... Kh7 {[%clk 0:01:06.8]} 32.
Rxf7+ {[%clk 0:01:11.1]} 32... Rxf7 {[%clk 0:01:05.9]} 33. Qxd8 {[%clk
0:01:11.4]} 33... Nf6 {[%clk 0:01:03.5]} 34. Qxb6 {[%clk 0:01:10.6]} 1-0

[Event "Late-Titled-Tuesday-Blitz-October-03-2023"]
[Site "Chess.com"]
[Date "2023.10.03"]
[Round "3"]
[White "protectiago"]
[Black "SpeedofLight0"]
[Result "0-1"]
[WhiteElo "2063"]
[BlackElo "3019"]
[TimeControl "180+1"]
[EndTime "14:24:44 PDT"]
[Termination "SpeedofLight0 won by resignation"]

1. d4 {[%clk 0:02:55.2]} 1... d6 {[%clk 0:03:00.9]} 2. c4 {[%clk 0:02:53.4]}
2... Nd7 {[%clk 0:03:01.8]} 3. Nf3 {[%clk 0:02:39.5]} 3... e5 {[%clk 0:02:56.4]}
4. dxe5 {[%clk 0:02:38.1]} 4... dxe5 {[%clk 0:02:57.3]} 5. e4 {[%clk 0:02:37.9]}
5... Ngf6 {[%clk 0:02:57.1]} 6. Qc2 {[%clk 0:02:35.1]} 6... Bb4+ {[%clk
0:02:54]} 7. Bd2 {[%clk 0:02:35.3]} 7... a5 {[%clk 0:02:54.1]} 8. Be2 {[%clk
0:02:34.9]} 8... O-O {[%clk 0:02:53.1]} 9. O-O {[%clk 0:02:35.8]} 9... c6 {[%clk
0:02:52.5]} 10. Bc3 {[%clk 0:02:36.2]} 10... Re8 {[%clk 0:02:50.2]} 11. Rd1
{[%clk 0:02:36.9]} 11... Qc7 {[%clk 0:02:47.4]} 12. a3 {[%clk 0:02:35.3]} 12...
Bf8 {[%clk 0:02:46.3]} 13. Nbd2 {[%clk 0:02:31.8]} 13... a4 {[%clk 0:02:43.6]}
14. b4 {[%clk 0:02:18.9]} 14... axb3 {[%clk 0:02:43.4]} 15. Nxb3 {[%clk
0:02:18.4]} 15... b6 {[%clk 0:02:35.1]} 16. Bb4 {[%clk 0:01:57.6]} 16... c5
{[%clk 0:02:35]} 17. Bc3 {[%clk 0:01:55.8]} 17... Bb7 {[%clk 0:02:34.3]} 18.
Nbd2 {[%clk 0:01:47]} 18... Nb8 {[%clk 0:02:33.3]} 19. Qb2 {[%clk 0:01:27.5]}
19... Nc6 {[%clk 0:02:31.6]} 20. Bf1 {[%clk 0:00:56.5]} 20... Nd4 {[%clk
0:02:30.2]} 21. Re1 {[%clk 0:00:56.5]} 21... Bd6 {[%clk 0:02:23]} 22. Bd3 {[%clk
0:00:43.6]} 22... Bc6 {[%clk 0:02:17.4]} 23. Rab1 {[%clk 0:00:34.3]} 23... Ra6
{[%clk 0:02:17.1]} 24. Qc1 {[%clk 0:00:26.6]} 24... Rea8 {[%clk 0:02:15.8]} 25.
Bb2 {[%clk 0:00:26.5]} 25... Nd7 {[%clk 0:02:14.4]} 26. Nh4 {[%clk 0:00:24]}
26... g6 {[%clk 0:02:13.9]} 27. g3 {[%clk 0:00:23.7]} 27... Qd8 {[%clk
0:02:07.3]} 28. Ng2 {[%clk 0:00:22.3]} 28... Be7 {[%clk 0:02:02.2]} 29. f4
{[%clk 0:00:21.6]} 29... exf4 {[%clk 0:02:00.4]} 30. Nxf4 {[%clk 0:00:21.8]}
30... Ne5 {[%clk 0:01:59.1]} 31. Nd5 {[%clk 0:00:21.7]} 31... Nxd3 {[%clk
0:01:58.6]} 0-1

[Event "Late-Titled-Tuesday-Blitz-October-03-2023"]
[Site "Chess.com"]
[Date "2023.10.03"]
[Round "3"]
[White "ritanovikova"]
[Black "Good_Knight_Kiss"]
[Result "0-1"]
[WhiteElo "2181"]
[BlackElo "2426"]
[TimeControl "180+1"]
[EndTime "14:24:44 PDT"]
[Termination "Good_Knight_Kiss won by resignation"]

1. d4 {[%clk 0:02:56.5]} 1... Nf6 {[%clk 0:02:59.4]} 2. Bf4 {[%clk 0:02:56.9]}
2... g6 {[%clk 0:02:59.2]} 3. Nf3 {[%clk 0:02:57.4]} 3... Bg7 {[%clk 0:02:58.9]}
4. c3 {[%clk 0:02:58.3]} 4... d6 {[%clk 0:02:58.6]} 5. Nbd2 {[%clk 0:02:59]}
5... O-O {[%clk 0:02:58.7]} 6. h3 {[%clk 0:02:59.3]} 6... Nfd7 {[%clk
0:02:57.7]} 7. e4 {[%clk 0:03:00]} 7... e5 {[%clk 0:02:43.4]} 8. Bg5 {[%clk
0:02:59.9]} 8... Qe8 {[%clk 0:02:43.1]} 9. Bd3 {[%clk 0:02:55.7]} 9... Nc6
{[%clk 0:02:42.3]} 10. d5 {[%clk 0:02:53.8]} 10... Ne7 {[%clk 0:02:42.3]} 11. c4
{[%clk 0:02:53.8]} 11... f5 {[%clk 0:02:39.6]} 12. Bxe7 {[%clk 0:02:49.6]} 12...
Qxe7 {[%clk 0:02:39.6]} 13. O-O {[%clk 0:02:49.3]} 13... f4 {[%clk 0:02:19.1]}
14. b4 {[%clk 0:02:48.4]} 14... g5 {[%clk 0:02:16.8]} 15. Rc1 {[%clk 0:02:44.2]}
15... h5 {[%clk 0:02:13.1]} 16. Kh1 {[%clk 0:02:41.5]} 16... g4 {[%clk
0:02:12.5]} 17. Ng1 {[%clk 0:02:42.4]} 17... Qh4 {[%clk 0:01:52.2]} 18. c5
{[%clk 0:02:29.1]} 18... Nf6 {[%clk 0:01:50.3]} 19. Ne2 {[%clk 0:02:15]} 19...
f3 {[%clk 0:01:34.6]} 20. Ng3 {[%clk 0:02:10.7]} 20... fxg2+ {[%clk 0:01:27.7]}
21. Kxg2 {[%clk 0:02:07]} 21... Qxh3+ {[%clk 0:01:23.6]} 22. Kg1 {[%clk
0:02:07.1]} 22... h4 {[%clk 0:01:18]} 23. Nf5 {[%clk 0:02:02.4]} 23... Bxf5
{[%clk 0:01:09]} 24. exf5 {[%clk 0:02:03.3]} 24... Bh6 {[%clk 0:00:57.2]} 25.
Ne4 {[%clk 0:01:48.4]} 25... Bf4 {[%clk 0:00:45.5]} 26. Nxf6+ {[%clk 0:01:32.4]}
26... Rxf6 {[%clk 0:00:44.8]} 27. Re1 {[%clk 0:01:33.3]} 27... Bh2+ {[%clk
0:00:41]} 28. Kh1 {[%clk 0:01:33.2]} 28... Bg3+ {[%clk 0:00:40.6]} 29. Kg1
{[%clk 0:01:33.1]} 29... Qh2+ {[%clk 0:00:39.4]} 0-1

[Event "Late-Titled-Tuesday-Blitz-October-03-2023"]
[Site "Chess.com"]
[Date "2023.10.03"]
[Round "3"]
[White "Jospem"]
[Black "Rutricks"]
[Result "1-0"]
[WhiteElo "3045"]
[BlackElo "2702"]
[TimeControl "180+1"]
[EndTime "14:24:46 PDT"]
[Termination "Jospem won by resignation"]

1. e4 {[%clk 0:03:00.9]} 1... g6 {[%clk 0:02:59.9]} 2. d4 {[%clk 0:03:00.9]}
2... Bg7 {[%clk 0:03:00.8]} 3. c3 {[%clk 0:03:01.6]} 3... c6 {[%clk 0:03:01.5]}
4. Bd3 {[%clk 0:03:02.2]} 4... d5 {[%clk 0:03:02.3]} 5. Nd2 {[%clk 0:03:01.5]}
5... dxe4 {[%clk 0:03:03.2]} 6. Nxe4 {[%clk 0:03:02.3]} 6... Nf6 {[%clk
0:03:03.4]} 7. Ng3 {[%clk 0:03:00.8]} 7... Qc7 {[%clk 0:03:00.9]} 8. h3 {[%clk
0:03:00.8]} 8... O-O {[%clk 0:03:01.4]} 9. Nf3 {[%clk 0:03:01.1]} 9... Nbd7
{[%clk 0:03:01.4]} 10. O-O {[%clk 0:02:57.8]} 10... e5 {[%clk 0:03:01.9]} 11.
Re1 {[%clk 0:02:54.8]} 11... exd4 {[%clk 0:02:59]} 12. cxd4 {[%clk 0:02:55.7]}
12... Nb6 {[%clk 0:02:45.7]} 13. Bg5 {[%clk 0:02:55.7]} 13... h6 {[%clk
0:02:41.7]} 14. Bd2 {[%clk 0:02:55.9]} 14... Rd8 {[%clk 0:02:03.5]} 15. Qc1
{[%clk 0:02:54.2]} 15... Kh7 {[%clk 0:02:04.1]} 16. Qc2 {[%clk 0:02:54.7]} 16...
Nbd5 {[%clk 0:01:59.1]} 17. Ne5 {[%clk 0:02:51.2]} 17... Kg8 {[%clk 0:01:59.7]}
18. Bc4 {[%clk 0:02:47.6]} 18... Qd6 {[%clk 0:01:42.9]} 19. Re2 {[%clk
0:02:31.7]} 19... Be6 {[%clk 0:01:19.5]} 20. Rae1 {[%clk 0:02:31.5]} 20... Nc7
{[%clk 0:01:00.9]} 21. Nxg6 {[%clk 0:02:14.3]} 21... Bxc4 {[%clk 0:00:15.4]} 22.
Ne7+ {[%clk 0:02:10.5]} 22... Kh8 {[%clk 0:00:15.8]} 23. Qxc4 {[%clk 0:02:09.5]}
23... Qxd4 {[%clk 0:00:16.1]} 24. Qxf7 {[%clk 0:01:37]} 24... Rd7 {[%clk
0:00:15.5]} 25. Ngf5 {[%clk 0:01:30]} 1-0

[Event "Late-Titled-Tuesday-Blitz-October-03-2023"]
[Site "Chess.com"]
[Date "2023.10.03"]
[Round "3"]
[White "traack"]
[Black "jerry_77"]
[Result "0-1"]
[WhiteElo "2418"]
[BlackElo "2609"]
[TimeControl "180+1"]
[EndTime "14:24:50 PDT"]
[Termination "jerry_77 won by resignation"]

1. e4 {[%clk 0:02:59.6]} 1... c6 {[%clk 0:02:56.9]} 2. Nf3 {[%clk 0:02:59.4]}
2... d5 {[%clk 0:02:57.8]} 3. Nc3 {[%clk 0:02:58.1]} 3... Bg4 {[%clk 0:02:55.8]}
4. h3 {[%clk 0:02:57.6]} 4... Bxf3 {[%clk 0:02:55.1]} 5. Qxf3 {[%clk 0:02:57.7]}
5... e6 {[%clk 0:02:56]} 6. d4 {[%clk 0:02:57.3]} 6... Nd7 {[%clk 0:02:50.1]} 7.
Be2 {[%clk 0:02:55]} 7... Bb4 {[%clk 0:02:42.4]} 8. O-O {[%clk 0:02:53.9]} 8...
Bxc3 {[%clk 0:02:40.3]} 9. bxc3 {[%clk 0:02:53.6]} 9... dxe4 {[%clk 0:02:40.8]}
10. Qxe4 {[%clk 0:02:53.5]} 10... Ngf6 {[%clk 0:02:41.4]} 11. Qh4 {[%clk
0:02:48.9]} 11... O-O {[%clk 0:02:33.4]} 12. f4 {[%clk 0:02:46.7]} 12... Qa5
{[%clk 0:02:33.2]} 13. Bd2 {[%clk 0:02:38.5]} 13... Ne4 {[%clk 0:02:33]} 14. Bd3
{[%clk 0:02:37.5]} 14... Ndf6 {[%clk 0:02:30.4]} 15. Be1 {[%clk 0:02:16.3]}
15... c5 {[%clk 0:02:20.8]} 16. f5 {[%clk 0:02:13]} 16... Nd6 {[%clk 0:02:11.5]}
17. fxe6 {[%clk 0:02:07.3]} 17... fxe6 {[%clk 0:02:12.4]} 18. Bg3 {[%clk
0:01:51.1]} 18... Nf5 {[%clk 0:02:00.5]} 19. Bxf5 {[%clk 0:01:50.2]} 19... exf5
{[%clk 0:02:01.4]} 20. Bd6 {[%clk 0:01:39.2]} 20... Rf7 {[%clk 0:01:48.9]} 21.
Bxc5 {[%clk 0:01:12]} 21... Qxc3 {[%clk 0:01:41.7]} 22. Rae1 {[%clk 0:01:05.9]}
22... Ne4 {[%clk 0:01:40.7]} 23. Rxe4 {[%clk 0:00:35.8]} 23... fxe4 {[%clk
0:01:38.8]} 24. Rxf7 {[%clk 0:00:36.7]} 24... Kxf7 {[%clk 0:01:38]} 25. Qxh7
{[%clk 0:00:36]} 25... Qe3+ {[%clk 0:01:37.5]} 26. Kh1 {[%clk 0:00:35.7]} 26...
Qc1+ {[%clk 0:01:36.6]} 27. Kh2 {[%clk 0:00:36.2]} 27... Qf4+ {[%clk 0:01:37.2]}
28. Kh1 {[%clk 0:00:36.5]} 28... e3 {[%clk 0:01:36.5]} 29. Qh5+ {[%clk
0:00:35.3]} 29... Kg8 {[%clk 0:01:34.8]} 30. d5 {[%clk 0:00:33.7]} 30... Qf1+
{[%clk 0:01:30.5]} 31. Kh2 {[%clk 0:00:33.7]} 31... e2 {[%clk 0:01:31.2]} 0-1

[Event "Late-Titled-Tuesday-Blitz-October-03-2023"]
[Site "Chess.com"]
[Date "2023.10.03"]
[Round "3"]
[White "Grischuk"]
[Black "jimis98"]
[Result "1/2-1/2"]
[WhiteElo "3005"]
[BlackElo "2705"]
[TimeControl "180+1"]
[EndTime "14:24:51 PDT"]
[Termination "Game drawn by repetition"]

1. d4 {[%clk 0:03:00.9]} 1... e6 {[%clk 0:02:57.1]} 2. e4 {[%clk 0:02:53.1]}
2... d5 {[%clk 0:02:55.9]} 3. e5 {[%clk 0:02:53.7]} 3... c5 {[%clk 0:02:55.7]}
4. c3 {[%clk 0:02:54.4]} 4... Nc6 {[%clk 0:02:55.4]} 5. Nf3 {[%clk 0:02:55]}
5... Bd7 {[%clk 0:02:54.9]} 6. Be2 {[%clk 0:02:55.1]} 6... Nge7 {[%clk
0:02:53.1]} 7. Na3 {[%clk 0:02:55.2]} 7... cxd4 {[%clk 0:02:47.7]} 8. cxd4
{[%clk 0:02:55.1]} 8... Nf5 {[%clk 0:02:48.3]} 9. Nc2 {[%clk 0:02:55.1]} 9...
Be7 {[%clk 0:02:47.7]} 10. O-O {[%clk 0:02:54.9]} 10... O-O {[%clk 0:02:47.2]}
11. Bd3 {[%clk 0:02:54.4]} 11... f6 {[%clk 0:02:43.5]} 12. Bxf5 {[%clk
0:02:52.7]} 12... exf5 {[%clk 0:02:43.3]} 13. Bf4 {[%clk 0:02:40.4]} 13... g5
{[%clk 0:02:33.4]} 14. exf6 {[%clk 0:02:40.4]} 14... Bxf6 {[%clk 0:02:34.3]} 15.
Bd6 {[%clk 0:02:39.9]} 15... Re8 {[%clk 0:02:28.2]} 16. Qd2 {[%clk 0:02:35.2]}
16... f4 {[%clk 0:01:54]} 17. Rfe1 {[%clk 0:02:23.1]} 17... Re4 {[%clk
0:01:24.4]} 18. Ne5 {[%clk 0:02:15.7]} 18... Bf5 {[%clk 0:01:22]} 19. Nxc6
{[%clk 0:02:08.1]} 19... Qxd6 {[%clk 0:01:18.4]} 20. Ne5 {[%clk 0:02:08.2]}
20... Re8 {[%clk 0:00:58.1]} 21. f3 {[%clk 0:02:07.5]} 21... Rxe1+ {[%clk
0:00:58]} 22. Rxe1 {[%clk 0:02:08.4]} 22... Bxe5 {[%clk 0:00:58.3]} 23. dxe5
{[%clk 0:02:08.8]} 23... Rxe5 {[%clk 0:00:56.6]} 24. Nd4 {[%clk 0:02:07.8]}
24... Bd7 {[%clk 0:00:52]} 25. h3 {[%clk 0:02:06.2]} 25... Rxe1+ {[%clk
0:00:36.6]} 26. Qxe1 {[%clk 0:02:07.1]} 26... Kf7 {[%clk 0:00:34.3]} 27. Kh1
{[%clk 0:02:02.9]} 27... Qf6 {[%clk 0:00:30.8]} 28. Qb4 {[%clk 0:01:57.2]} 28...
Bc6 {[%clk 0:00:29.7]} 29. a3 {[%clk 0:01:50.8]} 29... a6 {[%clk 0:00:30]} 30.
Qc5 {[%clk 0:01:48.3]} 30... Qe7 {[%clk 0:00:28.7]} 31. Qc2 {[%clk 0:01:46]}
31... Qe1+ {[%clk 0:00:17.1]} 32. Kh2 {[%clk 0:01:46.2]} 32... Qg3+ {[%clk
0:00:12.9]} 33. Kh1 {[%clk 0:01:46.6]} 33... Qe1+ {[%clk 0:00:11.8]} 34. Kh2
{[%clk 0:01:47.1]} 34... Qg3+ {[%clk 0:00:12.5]} 35. Kh1 {[%clk 0:01:47.7]}
35... Qe1+ {[%clk 0:00:13.2]} 1/2-1/2

[Event "Late-Titled-Tuesday-Blitz-October-03-2023"]
[Site "Chess.com"]
[Date "2023.10.03"]
[Round "3"]
[White "simplerXiao"]
[Black "WilliamAlfaroCaracas"]
[Result "1-0"]
[WhiteElo "2506"]
[BlackElo "2237"]
[TimeControl "180+1"]
[EndTime "14:24:52 PDT"]
[Termination "simplerXiao won on time"]

1. e4 {[%clk 0:03:00.9]} 1... e5 {[%clk 0:02:58.9]} 2. Bc4 {[%clk 0:02:59]} 2...
Nf6 {[%clk 0:02:56]} 3. Nc3 {[%clk 0:02:57.7]} 3... Nc6 {[%clk 0:02:55.6]} 4. f4
{[%clk 0:02:57]} 4... d5 {[%clk 0:02:54.9]} 5. exd5 {[%clk 0:02:56.5]} 5... Nd4
{[%clk 0:01:48.8]} 6. fxe5 {[%clk 0:02:48.9]} 6... Bg4 {[%clk 0:01:43]} 7. Nge2
{[%clk 0:02:40.7]} 7... Nh5 {[%clk 0:01:34.7]} 8. O-O {[%clk 0:02:38]} 8... Bc5
{[%clk 0:01:29.1]} 9. Kh1 {[%clk 0:02:26]} 9... Qh4 {[%clk 0:01:26.7]} 10. Qe1
{[%clk 0:02:02.8]} 10... Qxe1 {[%clk 0:01:25.9]} 11. Rxe1 {[%clk 0:02:03.1]}
11... Nxc2 {[%clk 0:01:22.3]} 12. Rf1 {[%clk 0:02:02.7]} 12... Nxa1 {[%clk
0:01:13.9]} 13. d4 {[%clk 0:01:56.9]} 13... Bb6 {[%clk 0:00:56.9]} 14. Bd3
{[%clk 0:01:49.8]} 14... O-O-O {[%clk 0:00:19.2]} 15. Be3 {[%clk 0:01:35.4]}
15... Bxe2 {[%clk 0:00:16.8]} 16. Nxe2 {[%clk 0:01:34.6]} 16... Rxd5 {[%clk
0:00:14.6]} 17. g4 {[%clk 0:01:32.2]} 17... c5 {[%clk 0:00:01.2]} 18. Be4 {[%clk
0:01:16.7]} 1-0

[Event "Late-Titled-Tuesday-Blitz-October-03-2023"]
[Site "Chess.com"]
[Date "2023.10.03"]
[Round "3"]
[White "HajiyevKanan"]
[Black "Vaathi_Coming"]
[Result "0-1"]
[WhiteElo "2548"]
[BlackElo "2889"]
[TimeControl "180+1"]
[EndTime "14:24:55 PDT"]
[Termination "Vaathi_Coming won by resignation"]

1. d4 {[%clk 0:02:59]} 1... Nf6 {[%clk 0:02:58.3]} 2. Nf3 {[%clk 0:02:56.6]}
2... b6 {[%clk 0:02:58.1]} 3. g3 {[%clk 0:02:54.9]} 3... Bb7 {[%clk 0:02:58.3]}
4. Bg2 {[%clk 0:02:55.6]} 4... g6 {[%clk 0:02:58.6]} 5. O-O {[%clk 0:02:56.1]}
5... Bg7 {[%clk 0:02:59.3]} 6. b3 {[%clk 0:02:56.7]} 6... O-O {[%clk 0:02:59.3]}
7. Bb2 {[%clk 0:02:57.4]} 7... Ne4 {[%clk 0:02:58.6]} 8. Nbd2 {[%clk 0:02:57.3]}
8... c5 {[%clk 0:02:57.4]} 9. Nxe4 {[%clk 0:02:52.2]} 9... Bxe4 {[%clk
0:02:58.3]} 10. c4 {[%clk 0:02:50.5]} 10... Nc6 {[%clk 0:02:57.6]} 11. e3 {[%clk
0:02:48.7]} 11... d5 {[%clk 0:02:57.4]} 12. Qd2 {[%clk 0:02:23.1]} 12... dxc4
{[%clk 0:02:23.5]} 13. bxc4 {[%clk 0:02:24]} 13... cxd4 {[%clk 0:02:23.1]} 14.
exd4 {[%clk 0:02:06.1]} 14... Bxf3 {[%clk 0:02:23.2]} 15. Bxf3 {[%clk
0:02:06.8]} 15... Nxd4 {[%clk 0:02:23.9]} 16. Bxa8 {[%clk 0:01:54.9]} 16... Nf3+
{[%clk 0:02:21.8]} 17. Bxf3 {[%clk 0:01:51.2]} 17... Qxd2 {[%clk 0:02:22.7]} 18.
Bxg7 {[%clk 0:01:50.7]} 18... Kxg7 {[%clk 0:02:23.6]} 19. Rfe1 {[%clk 0:01:41]}
19... e6 {[%clk 0:02:12.5]} 20. a4 {[%clk 0:01:37.2]} 20... Rc8 {[%clk
0:02:07.9]} 21. Be2 {[%clk 0:01:31.3]} 21... Rc5 {[%clk 0:02:06.6]} 22. Bf1
{[%clk 0:01:28.8]} 22... h5 {[%clk 0:01:56.5]} 23. h4 {[%clk 0:01:13]} 23... Rf5
{[%clk 0:01:50.7]} 24. Re2 {[%clk 0:01:10.2]} 24... Qd4 {[%clk 0:01:50.5]} 25.
Raa2 {[%clk 0:00:48.4]} 25... Qxc4 {[%clk 0:01:47]} 26. a5 {[%clk 0:00:44.1]}
26... Rxa5 {[%clk 0:01:45.1]} 27. Rxa5 {[%clk 0:00:44.1]} 27... bxa5 {[%clk
0:01:46]} 28. Re5 {[%clk 0:00:33.7]} 28... Qb4 {[%clk 0:01:42.6]} 29. Rb5 {[%clk
0:00:32.9]} 29... Qc3 {[%clk 0:01:42.6]} 30. Rb7 {[%clk 0:00:30.4]} 30... a4
{[%clk 0:01:40.8]} 31. Rxa7 {[%clk 0:00:29.8]} 31... a3 {[%clk 0:01:41.4]} 32.
Ra4 {[%clk 0:00:27.2]} 32... Qb3 {[%clk 0:01:40.8]} 33. Rf4 {[%clk 0:00:17.7]}
33... a2 {[%clk 0:01:40.6]} 34. Bc4 {[%clk 0:00:16.4]} 34... a1=Q+ {[%clk
0:01:40.2]} 0-1